lending/lending_fUSD_20240509
["ID","MTS","AMOUNT","RATE_DAILY","PERIOD"]
[326719247,1715283048936,-500.0,0.00041095,30]
[326719248,1715283048945,-500.0,0.00041095,30]
[326719249,1715283048955,-500.0,0.00041095,30]
[326719250,1715283048965,-600.49,0.00041095,30]
[326719251,1715283048974,-500.0,0.00041095,30]
[326719252,1715283048983,-500.0,0.00041095,30]
[326719253,1715283048992,-1500.0,0.00041095,30]
[326719254,1715283049002,-500.0,0.00041095,30]
[326719255,1715283049011,-500.0,0.00041095,30]
[326719256,1715283049020,-500.0,0.00041095,30]
[326719257,1715283049029,-500.0,0.00041095,30]
[326719258,1715283049038,-500.0,0.00041095,30]
[326719259,1715283049048,-500.0,0.00041095,30]
[326719260,1715283049057,-500.0,0.00041095,30]
[326719261,1715283049067,-500.0,0.00041095,30]
[326719262,1715283049076,-500.0,0.00041095,30]
[326719263,1715283049085,-500.0,0.00041095,30]
[326719264,1715283049310,-500.0,0.00041095,30]
[326719265,1715283049319,-500.0,0.00041095,30]
[326719266,1715283049328,-512.49,0.00041095,30]
[326719267,1715283049337,-500.0,0.00041095,30]
[326719268,1715283049346,-500.0,0.00041095,30]
[326719269,1715283049355,-500.0,0.00041095,30]
[326719270,1715283049367,-500.0,0.00041095,30]
[326719271,1715283049376,-500.0,0.00041095,30]
[326719272,1715283049385,-500.0,0.00041095,30]
[326719273,1715283049394,-500.0,0.00041095,30]
[326719274,1715283049403,-500.0,0.00041095,30]
[326719275,1715283049413,-500.0,0.00041095,30]
[326719276,1715283049422,-500.0,0.00041095,30]
[326719277,1715283049431,-594.09,0.00041095,30]
[326719278,1715283049440,-500.0,0.00041095,30]
[326719279,1715283049450,-500.0,0.00041095,30]
[326719280,1715283049459,-500.0,0.00041095,30]
[326719281,1715283049469,-500.0,0.00041095,30]
[326719282,1715283049478,-500.0,0.00041095,30]
[326719283,1715283049487,-500.0,0.00041095,30]
[326719284,1715283049497,-500.0,0.00041095,30]
[326719285,1715283049507,-500.0,0.00041095,30]
[326719286,1715283049516,-500.0,0.00041095,30]
[326719287,1715283049527,-500.0,0.00041095,30]
[326719288,1715283049540,-523.23,0.00041095,30]
[326719289,1715283049549,-500.0,0.00041095,30]
[326719290,1715283049559,-500.0,0.00041095,30]
[326719291,1715283049570,-500.0,0.00041095,30]
[326719292,1715283049579,-504.17024323,0.00041095,30]
[326719293,1715283049589,-500.0,0.00041095,30]
[326719294,1715283049598,-500.0,0.00041095,30]
[326719295,1715283049613,-500.0,0.00041095,30]
[326719296,1715283049622,-516.05915166,0.00041095,30]
[326719297,1715283049631,-500.0,0.00041095,30]
[326719298,1715283049640,-500.0,0.00041095,30]
[326719299,1715283049650,-500.0,0.00041095,30]
[326719300,1715283049659,-500.0,0.00041095,30]
[326719301,1715283049668,-500.0,0.00041095,30]
[326719302,1715283049677,-500.0,0.00041095,30]
[326719303,1715283049686,-500.0,0.00041095,30]
[326719304,1715283049695,-667.75,0.00041095,30]
[326719305,1715283049705,-500.0,0.00041095,30]
[326719306,1715283049714,-500.0,0.00041095,30]
[326719307,1715283049723,-500.0,0.00041095,30]
[326719308,1715283049733,-500.0,0.00041095,30]
[326719309,1715283049742,-500.0,0.00041095,30]
[326719310,1715283049752,-2001.65,0.00041095,30]
[326719311,1715283049761,-500.0,0.00041095,30]
[326719312,1715283049771,-500.0,0.00041095,30]
[326719313,1715283049780,-500.0,0.00041095,30]
[326719314,1715283049789,-500.0,0.00041095,30]
[326719315,1715283049799,-500.0,0.00041095,30]
[326719316,1715283049808,-500.0,0.00041095,30]
[326719317,1715283049818,-500.0,0.00041095,30]
[326719318,1715283049828,-975.18,0.00041095,30]
[326719319,1715283049837,-574.29660848,0.00041095,30]
[326719320,1715283049847,-542.56,0.00041095,30]
[326719321,1715283049856,-500.0,0.00041095,30]
[326719322,1715283049868,-500.0,0.00041095,30]
[326719323,1715283049877,-527.87,0.00041095,30]
[326719324,1715283049886,-500.0,0.00041095,30]
[326719325,1715283049895,-500.0,0.00041095,30]
[326719326,1715283049905,-500.0,0.00041095,30]
[326719327,1715283049914,-500.0,0.00041095,2]
[326719328,1715283049923,-500.0,0.00041095,30]
[326719329,1715283049932,-628.55,0.00041095,30]
[326719330,1715283049941,-934.46,0.00041095,30]
[326719331,1715283049950,-500.0,0.00041095,30]
[326719332,1715283049959,-500.0,0.00041095,30]
[326719333,1715283049969,-391.52961569,0.00041095,30]
[326719334,1715283049978,-500.0,0.00041095,30]
[326719335,1715283049987,-500.0,0.00041095,30]
[326719336,1715283049996,-899.77,0.00041095,30]
[326719337,1715283050006,-500.0,0.00041095,30]
[326719338,1715283050016,-717.0,0.00041095,30]
[326719339,1715283050025,-500.0,0.00041095,30]
[326719340,1715283050035,-500.0,0.00041095,30]
[326719341,1715283050044,-500.0,0.00041095,30]
[326719342,1715283050053,-500.0,0.00041095,30]
[326719343,1715283050063,-500.0,0.00041095,30]
[326719344,1715283050072,-500.0,0.00041095,30]
[326719345,1715283050081,-500.0,0.00041095,30]
[326719346,1715283050091,-500.0,0.00041095,30]
[326719347,1715283050100,-500.0,0.00041095,30]
[326719348,1715283050111,-643.67,0.00041095,30]
[326719349,1715283050121,-506.07146437,0.00041095,30]
[326719350,1715283050130,-500.0,0.00041095,30]
[326719351,1715283050140,-652.77,0.00041095,30]
[326719352,1715283050149,-500.0,0.00041095,30]
[326719353,1715283050159,-500.0,0.00041095,30]
[326719354,1715283050168,-500.0,0.00041095,30]
[326719355,1715283050178,-500.0,0.00041095,30]
[326719356,1715283050187,-622.3606328,0.00041095,2]
[326719357,1715283050197,-500.0,0.00041095,30]
[326719358,1715283050206,-554.99685236,0.00041095,30]
[326719359,1715283050215,-500.0,0.00041095,30]
[326719360,1715283050224,-500.0,0.00041095,30]
[326719361,1715283050234,-500.0,0.00041095,30]
[326719362,1715283050243,-523.17,0.00041095,30]
[326719363,1715283050252,-800.94,0.00041095,30]
[326719364,1715283050262,-500.0,0.00041095,30]
[326719365,1715283050272,-500.0,0.00041095,30]
[326719366,1715283050281,-500.0,0.00041095,30]
[326719367,1715283050291,-500.0,0.00041095,30]
[326719368,1715283050300,-509.89696074,0.00041095,30]
[326719369,1715283050309,-500.0,0.00041095,30]
[326719370,1715283050318,-200.0,0.00041095,30]
[326719371,1715283050327,-732.49,0.00041095,30]
[326719372,1715283050337,-755.02,0.00041095,30]
[326719373,1715283050347,-500.0,0.00041095,30]
[326719374,1715283050356,-500.0,0.00041095,30]
[326719375,1715283050372,-500.0,0.00041095,7]
[326719376,1715283050382,-500.0,0.00041095,30]
[326719377,1715283050391,-500.0,0.00041095,30]
[326719378,1715283050401,-500.0,0.00041095,30]
[326719379,1715283050412,-500.0,0.00041095,30]
[326719380,1715283050421,-500.0,0.00041095,30]
[326719381,1715283050431,-500.0,0.00041095,30]
[326719382,1715283050441,-319.94091388,0.00041095,30]
[326719383,1715283050451,-227.12058227,0.00041095,30]
[326719384,1715283050460,-500.0,0.00041095,30]
[326719385,1715283050472,-500.0,0.00041095,30]
[326719386,1715283050481,-500.0,0.00041095,30]
[326719387,1715283050490,-500.0,0.00041095,30]
[326719388,1715283050499,-500.0,0.00041095,30]
[326719389,1715283050509,-500.0,0.00041095,30]
[326719390,1715283050518,-500.0,0.00041095,30]
[326719391,1715283050529,-500.0,0.00041095,30]
[326719392,1715283050540,-1722.59,0.00041095,30]
[326719393,1715283050550,-500.0,0.00041095,30]
[326719394,1715283050560,-540.74239108,0.00041095,30]
[326719395,1715283050571,-437.19149855,0.00041095,30]
[326719396,1715283051452,-62.80850145,0.00041095,30]
[326719397,1715283051463,-688.11,0.00041095,30]
[326719398,1715283051473,-290.48993465,0.00041095,30]
[326719399,1715283051487,-537.44006535,0.00041095,30]
[326719400,1715283051498,-511.16801067,0.00041095,30]
[326719401,1715283051507,-500.0,0.00041095,30]
[326719402,1715283051517,-223.17521348,0.00041095,30]
[326719403,1715283051533,-276.82478652,0.00041095,30]
[326719404,1715283051543,-602.63,0.00041095,30]
[326719405,1715283051553,-500.0,0.00041095,30]
[326719406,1715283051566,-500.0,0.00041095,30]
[326719407,1715283051576,-500.0,0.00041095,30]
[326719408,1715283051586,-500.0,0.00041095,30]
[326719409,1715283051595,-500.0,0.00041095,30]
[326719410,1715283051611,-500.0,0.00041095,30]
[326719411,1715283051621,-500.0,0.00041095,30]
[326719412,1715283051630,-500.0,0.00041095,30]
[326719413,1715283051639,-500.0,0.00041095,30]
[326719414,1715283051649,-500.0,0.00041095,30]
[326719415,1715283051659,-623.45,0.00041095,30]
[326719416,1715283051668,-623.53,0.00041095,30]
[326719417,1715283051678,-500.0,0.00041095,30]
[326719418,1715283051688,-150.0,0.00041095,30]
[326719419,1715283051698,-500.0,0.00041095,30]
[326719420,1715283051710,-500.0,0.00041095,30]
[326719421,1715283051720,-641.84,0.00041095,30]
[326719422,1715283051729,-170.0281152,0.00041095,30]
[326719423,1715283051739,-500.0,0.00041095,30]
[326719424,1715283051748,-500.0,0.00041095,30]
[326719425,1715283051757,-500.0,0.00041095,30]
[326719426,1715283051766,-500.0,0.00041095,30]
[326719427,1715283051776,-500.0,0.00041095,30]
[326719428,1715283051786,-500.0,0.00041095,30]
[326719429,1715283051795,-500.0,0.00041095,20]
[326719430,1715283051804,-500.0,0.00041095,30]
[326719431,1715283051814,-509.95,0.00041095,30]
[326719432,1715283051823,-500.0,0.00041095,30]
[326719433,1715283051833,-700.8,0.00041095,30]
[326719434,1715283051842,-500.0,0.00041095,30]
[326719435,1715283051851,-500.0,0.00041095,30]
[326719436,1715283051861,-500.0,0.00041095,30]
[326719437,1715283051870,-500.0,0.00041095,30]
[326719438,1715283051879,-500.0,0.00041095,30]
[326719439,1715283051888,-516.37487608,0.00041095,30]
[326719440,1715283051898,-156.70516259,0.00041095,30]
[326719441,1715283051907,-500.0,0.00041095,30]
[326719442,1715283051917,-753.10265183,0.00041095,30]
[326719443,1715283051926,-500.0,0.00041095,30]
[326719444,1715283051935,-1293.93,0.00041095,30]
[326719445,1715283051944,-500.0,0.00041095,30]
[326719446,1715283051953,-1285.58,0.00041095,30]
[326719447,1715283051962,-500.0,0.00041095,30]
[326719448,1715283051972,-500.0,0.00041095,30]
[326719449,1715283051981,-500.0,0.00041095,30]
[326719450,1715283051990,-500.0,0.00041095,30]
[326719451,1715283052000,-500.0,0.00041095,30]
[326719452,1715283052010,-500.0,0.00041095,30]
[326719453,1715283052020,-517.85,0.00041095,30]
[326719454,1715283052030,-500.0,0.00041095,30]
[326719455,1715283052040,-500.0,0.00041095,30]
[326719456,1715283052050,-500.0,0.00041095,30]
[326719457,1715283052061,-500.0,0.00041095,30]
[326719458,1715283052071,-500.0,0.00041095,30]
[326719459,1715283052082,-500.0,0.00041095,30]
[326719460,1715283052092,-500.0,0.00041095,30]
[326719461,1715283052104,-500.0,0.00041095,30]
[326719462,1715283052123,-500.0,0.00041095,30]
[326719463,1715283052135,-502.83484775,0.00041095,30]
[326719464,1715283052146,-500.0,0.00041095,30]
[326719465,1715283052156,-807.48,0.00041095,30]
[326719466,1715283052168,-500.0,0.00041095,30]
[326719467,1715283052178,-1396.0,0.00041095,30]
[326719468,1715283052188,-500.0,0.00041095,30]
[326719469,1715283052198,-517.63,0.00041095,30]
[326719470,1715283052208,-500.0,0.00041095,30]
[326719471,1715283052219,-500.0,0.00041095,30]
[326719472,1715283052229,-500.0,0.00041095,30]
[326719473,1715283052239,-500.0,0.00041095,30]
[326719474,1715283052249,-500.0,0.00041095,30]
[326719475,1715283052259,-867.5,0.00041095,30]
[326719476,1715283052454,-500.0,0.00041095,30]
[326719477,1715283052464,-867.5,0.00041095,31]
[326719478,1715283052474,-867.5,0.00041095,32]
[326719479,1715283052484,-867.5,0.00041095,33]
[326719480,1715283052494,-867.5,0.00041095,34]
[326719481,1715283052504,-506.92374052,0.00041095,30]
[326719482,1715283052513,-500.0,0.00041095,30]
[326719483,1715283052523,-867.5,0.00041095,35]
[326719484,1715283052536,-867.5,0.00041095,36]
[326719485,1715283052545,-867.5,0.00041095,37]
[326719486,1715283052557,-867.5,0.00041095,38]
[326719487,1715283052567,-500.0,0.00041095,30]
[326719488,1715283052577,-867.5,0.00041095,39]
[326719489,1715283052586,-533.12107842,0.00041095,30]
[326719490,1715283052595,-867.5,0.00041095,40]
[326719491,1715283052605,-500.0,0.00041095,30]
[326719492,1715283052626,-867.5,0.00041095,41]
[326719493,1715283052635,-500.0,0.00041095,30]
[326719494,1715283052645,-867.5,0.00041095,42]
[326719495,1715283052654,-867.5,0.00041095,43]
[326719496,1715283052663,-867.5,0.00041095,44]
[326719497,1715283052672,-867.5,0.00041095,45]
[326719498,1715283052681,-867.5,0.00041095,46]
[326719499,1715283052690,-867.5,0.00041095,47]
[326719500,1715283052699,-502.16182038,0.00041095,30]
[326719501,1715283052707,-504.83636406,0.00041095,30]
[326719502,1715283052716,-732.41,0.00041095,30]
[326719503,1715283052725,-867.5,0.00041095,48]
[326719504,1715283052735,-867.5,0.00041095,49]
[326719505,1715283052744,-867.5,0.00041095,49]
[326719506,1715283052753,-2276.28,0.00041095,30]
[326719507,1715283052763,-867.5,0.00041095,49]
[326719508,1715283052772,-500.0,0.00041095,30]
[326719509,1715283052781,-867.5,0.00041095,49]
[326719510,1715283052790,-795.83,0.00041095,30]
[326719511,1715283052800,-867.57452394,0.00041095,49]
[326719512,1715283052809,-500.0,0.00041095,2]
[326719513,1715283052819,-389.05228895,0.00041095,30]
[326719514,1715283052828,-500.0,0.00041095,30]
[326719515,1715283052837,-500.0,0.00041095,30]
[326719516,1715283052847,-500.0,0.00041095,30]
[326719517,1715283052856,-500.0,0.00041095,30]
[326719518,1715283052872,-1014.54,0.00041095,30]
[326719519,1715283052881,-500.0,0.00041095,30]
[326719520,1715283052891,-500.0,0.00041095,30]
[326719521,1715283052900,-500.0,0.00041095,30]
[326719522,1715283052909,-502.36670978,0.00041095,30]
[326719523,1715283052918,-500.0,0.00041095,30]
[326719524,1715283052928,-500.0,0.00041095,30]
[326719525,1715283052937,-500.0,0.00041095,30]
[326719526,1715283052946,-500.0,0.00041095,2]
[326719527,1715283052955,-500.0,0.00041095,30]
[326719528,1715283052964,-500.0,0.00041095,30]
[326719529,1715283052974,-500.0,0.00041095,30]
[326719530,1715283052984,-500.0,0.00041095,30]
[326719531,1715283052995,-500.0,0.00041095,30]
[326719532,1715283053004,-551.05,0.00041095,30]
[326719533,1715283053014,-500.0,0.00041095,30]
[326719534,1715283053023,-702.11,0.00041095,30]
[326719535,1715283053034,-1875.0,0.00041095,2]
[326719536,1715283053043,-518.16,0.00041095,30]
[326719537,1715283053052,-500.0,0.00041095,30]
[326719538,1715283053062,-500.0,0.00041095,30]
[326719539,1715283053071,-500.0,0.00041095,30]
[326719540,1715283053081,-500.0,0.00041095,30]
[326719541,1715283053090,-500.0,0.00041095,30]
[326719542,1715283053099,-500.0,0.00041095,30]
[326719543,1715283053108,-500.0,0.00041095,30]
[326719544,1715283053123,-500.0,0.00041095,30]
[326719545,1715283053132,-500.0,0.00041095,30]
[326719546,1715283053141,-500.0,0.00041095,31]
[326719547,1715283053150,-500.0,0.00041095,32]
[326719548,1715283053160,-589.45575791,0.00041095,33]
[326719549,1715283053170,-772.46,0.00041095,30]
[326719550,1715283053179,-501.38133002,0.00041095,30]
[326719551,1715283053188,-500.0,0.00041095,30]
[326719552,1715283053197,-500.0,0.00041095,30]
[326719553,1715283053206,-500.0,0.00041095,30]
[326719554,1715283053216,-2000.0,0.00041095,30]
[326719555,1715283053227,-500.0,0.00041095,30]
[326719556,1715283053237,-500.0,0.00041095,30]
[326719557,1715283053246,-500.0,0.00041095,30]
[326719558,1715283053255,-1101.38,0.00041095,30]
[326719559,1715283053265,-500.0,0.00041095,2]
[326719560,1715283053274,-500.0,0.00041095,30]
[326719561,1715283053284,-500.0,0.00041095,30]
[326719562,1715283053293,-562.46,0.00041095,30]
[326719563,1715283053303,-500.0,0.00041095,30]
[326719564,1715283053312,-500.0,0.00041095,30]
[326719565,1715283053321,-500.0,0.00041095,30]
[326719566,1715283053331,-500.0,0.00041095,30]
[326719567,1715283053340,-500.0,0.00041095,30]
[326719568,1715283053350,-500.0,0.00041095,30]
[326719569,1715283053359,-500.0,0.00041095,2]
[326719570,1715283053373,-500.0,0.00041095,30]
[326719571,1715283053382,-500.0,0.00041095,30]
[326719572,1715283053391,-1057.41,0.00041095,30]
[326719573,1715283053399,-500.0,0.00041095,30]
[326719574,1715283053408,-500.0,0.00041095,30]
[326719575,1715283053417,-500.0,0.00041095,30]
[326719576,1715283053426,-500.0,0.00041095,30]
[326719577,1715283053434,-500.0,0.00041095,30]
[326719578,1715283053443,-500.0,0.00041095,30]
[326719579,1715283053452,-539.84,0.00041095,30]
[326719580,1715283053462,-500.0,0.00041095,30]
[326719581,1715283053471,-500.0,0.00041095,30]
[326719582,1715283053480,-804.6,0.00041095,30]
[326719583,1715283053489,-500.0,0.00041095,30]
[326719584,1715283053505,-500.0,0.00041095,30]
[326719585,1715283053515,-500.0,0.00041095,30]
[326719586,1715283053529,-500.0,0.00041095,30]
[326719587,1715283053538,-335.3735257,0.00041095,30]
[326719588,1715283053547,-500.0,0.00041095,30]
[326719589,1715283053557,-500.0,0.00041095,30]
[326719590,1715283053566,-500.0,0.00041095,30]
[326719591,1715283053577,-500.0,0.00041095,30]
[326719592,1715283053586,-876.86,0.00041095,30]
[326719593,1715283053596,-500.0,0.00041095,30]
[326719594,1715283053608,-500.0,0.00041095,30]
[326719595,1715283053621,-500.0,0.00041095,30]
[326719596,1715283053630,-300.0,0.00041095,7]
[326719597,1715283053639,-500.0,0.00041095,30]
[326719598,1715283053648,-500.0,0.00041095,30]
[326719599,1715283053657,-500.0,0.00041095,30]
[326719600,1715283053666,-500.0,0.00041095,30]
[326719601,1715283053675,-500.0,0.00041095,30]
[326719602,1715283053686,-500.0,0.00041095,30]
[326719603,1715283053695,-500.0,0.00041095,30]
[326719604,1715283053704,-500.0,0.00041095,30]
[326719605,1715283053713,-500.0,0.00041095,30]
[326719606,1715283053722,-479.88800994,0.00041095,30]
[326719607,1715283053732,-524.04479434,0.00041095,30]
[326719608,1715283053741,-500.0,0.00041095,30]
[326719609,1715283053750,-440.58980476,0.00041095,30]
[326719610,1715283053760,-500.0,0.00041095,30]
[326719611,1715283053771,-500.0,0.00041095,30]
[326719612,1715283053782,-500.0,0.00041095,30]
[326719613,1715283053791,-500.0,0.00041095,30]
[326719614,1715283053800,-500.0,0.00041095,30]
[326719615,1715283053809,-1639.99,0.00041095,30]
[326719616,1715283053819,-500.0,0.00041095,30]
[326719617,1715283053827,-1050.58,0.00041095,30]
[326719618,1715283053837,-500.0,0.00041095,30]
[326719619,1715283053846,-500.0,0.00041095,30]
[326719620,1715283053856,-500.0,0.00041095,30]
[326719621,1715283053867,-500.0,0.00041095,30]
[326719622,1715283053876,-500.0,0.00041095,30]
[326719623,1715283053885,-500.0,0.00041095,30]
[326719624,1715283053894,-500.0,0.00041095,30]
[326719625,1715283053903,-1230.85,0.00041095,30]
[326719626,1715283053913,-500.0,0.00041095,30]
[326719627,1715283053923,-500.0,0.00041095,30]
[326719628,1715283053933,-604.95,0.00041095,30]
[326719629,1715283053943,-500.0,0.00041095,30]
[326719630,1715283053955,-500.0,0.00041095,30]
[326719631,1715283053965,-500.0,0.00041095,30]
[326719632,1715283053975,-500.0,0.00041095,30]
[326719633,1715283053984,-500.0,0.00041095,30]
[326719634,1715283053993,-455.77856759,0.00041095,30]
[326719635,1715283054003,-500.0,0.00041095,30]
[326719636,1715283054012,-540.51,0.00041095,30]
[326719637,1715283054021,-500.0,0.00041095,30]
[326719638,1715283054031,-500.0,0.00041095,30]
[326719639,1715283054040,-500.0,0.00041095,30]
[326719640,1715283054049,-500.0,0.00041095,30]
[326719641,1715283054058,-500.0,0.00041095,30]
[326719642,1715283054067,-500.0,0.00041095,30]
[326719643,1715283054076,-895.73,0.00041095,30]
[326719644,1715283054086,-500.0,0.00041095,30]
[326719645,1715283054096,-500.0,0.00041095,30]
[326719646,1715283054105,-564.57,0.00041095,30]
[326719647,1715283054117,-500.0,0.00041095,30]
[326719648,1715283054126,-500.0,0.00041095,30]
[326719649,1715283054135,-2247.3,0.00041095,30]
[326719650,1715283054144,-500.0,0.00041095,30]
[326719651,1715283054153,-500.0,0.00041095,30]
[326719652,1715283054162,-500.0,0.00041095,30]
[326719653,1715283054172,-884.75,0.00041095,30]
[326719654,1715283054182,-500.0,0.00041095,30]
[326719655,1715283054191,-500.0,0.00041095,30]
[326719656,1715283054200,-2566.54,0.00041095,30]
[326719657,1715283054210,-500.0,0.00041095,30]
[326719658,1715283054220,-699.83,0.00041095,30]
[326719659,1715283054229,-500.0,0.00041095,30]
[326719660,1715283054238,-500.0,0.00041095,30]
[326719661,1715283054248,-537.96,0.00041095,30]
[326719662,1715283054258,-633.37,0.00041095,30]
[326719663,1715283054267,-500.0,0.00041095,30]
[326719664,1715283054277,-500.0,0.00041095,30]
[326719665,1715283054286,-500.0,0.00041095,30]
[326719666,1715283054295,-764.97,0.00041095,30]
[326719667,1715283054305,-989.38,0.00041095,30]
[326719668,1715283054314,-500.0,0.00041095,30]
[326719669,1715283054324,-500.0,0.00041095,30]
[326719670,1715283054333,-1296.39,0.00041095,30]
[326719671,1715283054343,-586.31,0.00041095,30]
[326719672,1715283054352,-500.0,0.00041095,30]
[326719673,1715283054364,-500.0,0.00041095,30]
[326719674,1715283054373,-500.0,0.00041095,30]
[326719675,1715283054383,-1740.75,0.00041095,30]
[326719676,1715283054392,-500.0,0.00041095,30]
[326719677,1715283054402,-501.47530553,0.00041095,30]
[326719678,1715283054412,-500.0,0.00041095,30]
[326719679,1715283054421,-504.41430361,0.00041095,30]
[326719680,1715283054430,-759.83,0.00041095,30]
[326719681,1715283054439,-500.0,0.00041095,30]
[326719682,1715283054448,-500.0,0.00041095,30]
[326719683,1715283054458,-410.48319662,0.00041095,30]
[326719684,1715283054467,-579.04,0.00041095,30]
[326719685,1715283054476,-500.0,0.00041095,30]
[326719686,1715283054486,-834.61,0.00041095,30]
[326719687,1715283054495,-505.26034864,0.00041095,30]
[326719688,1715283054505,-512.78339851,0.00041095,30]
[326719689,1715283054514,-500.0,0.00041095,30]
[326719690,1715283054524,-500.0,0.00041095,30]
[326719691,1715283054536,-500.0,0.00041095,30]
[326719692,1715283054546,-500.0,0.00041095,30]
[326719693,1715283054557,-500.0,0.00041095,30]
[326719694,1715283054567,-691.57,0.00041095,30]
[326719695,1715283054577,-500.0,0.00041095,30]
[326719696,1715283054586,-538.9084096,0.00041095,30]
[326719697,1715283054595,-1981.3,0.00041095,30]
[326719698,1715283054606,-500.0,0.00041095,30]
[326719699,1715283054618,-500.0,0.00041095,30]
[326719700,1715283054627,-514.55594688,0.00041095,30]
[326719701,1715283054637,-500.0,0.00041095,30]
[326719702,1715283054646,-500.0,0.00041095,30]
[326719703,1715283054656,-666.63,0.00041095,30]
[326719704,1715283054666,-500.0,0.00041095,30]
[326719705,1715283054675,-1085.38,0.00041095,30]
[326719706,1715283054685,-500.0,0.00041095,30]
[326719707,1715283054694,-500.0,0.00041095,30]
[326719708,1715283054703,-507.60870025,0.00041095,30]
[326719709,1715283054714,-500.0,0.00041095,30]
[326719710,1715283054723,-500.0,0.00041095,30]
[326719711,1715283054733,-500.0,0.00041095,30]
[326719712,1715283054742,-500.0,0.00041095,30]
[326719713,1715283054752,-1245.38,0.00041095,30]
[326719714,1715283054762,-500.0,0.00041095,30]
[326719715,1715283054772,-500.0,0.00041095,30]
[326719716,1715283054783,-9931.73388826,0.00041095,2]
[326719717,1715283054793,-503.34905797,0.00041095,30]
[326719718,1715283054803,-500.0,0.00041095,30]
[326719719,1715283054813,-1810.52,0.00041095,30]
[326719720,1715283054823,-500.0,0.00041095,31]
[326719721,1715283054832,-500.0,0.00041095,32]
[326719722,1715283054842,-500.0,0.00041095,30]
[326719723,1715283054852,-500.0,0.00041095,30]
[326719724,1715283054864,-500.0,0.00041095,33]
[326719725,1715283054874,-500.0,0.00041095,30]
[326719726,1715283054883,-500.0,0.00041095,34]
[326719727,1715283054893,-500.0,0.00041095,30]
[326719728,1715283054902,-500.0,0.00041095,30]
[326719729,1715283054912,-500.0,0.00041095,30]
[326719730,1715283054921,-500.0,0.00041095,30]
[326719731,1715283054930,-500.0,0.00041095,35]
[326719732,1715283054940,-500.0,0.00041095,30]
[326719733,1715283054949,-500.0,0.00041095,36]
[326719734,1715283054959,-500.0,0.00041095,37]
[326719735,1715283054968,-2076.45,0.00041095,90]
[326719736,1715283054978,-500.0,0.00041095,30]
[326719737,1715283054987,-500.0,0.00041095,38]
[326719738,1715283054997,-500.0,0.00041095,39]
[326719739,1715283055007,-500.0,0.00041095,40]
[326719740,1715283055016,-1121.1,0.00041095,30]
[326719741,1715283055025,-500.0,0.00041095,30]
[326719742,1715283055034,-500.0,0.00041095,30]
[326719743,1715283055044,-505.5447415,0.00041095,30]
[326719744,1715283055053,-704.72,0.00041095,30]
[326719745,1715283055063,-500.0,0.00041095,30]
[326719746,1715283055072,-500.0,0.00041095,30]